Workbook

Sheet příjmy
D1: Rozpočet 2021
B3: I.Rozpočtové příjmy
B6: Paragraf | C6: Položka
B7: a | C7: b | E7: 2021
B9: 0000 | C9: 1111 | D9: Daň z příj.fyz.osob ze závis.č | E9: 850000
B10: 0000 | C10: 1112 | D10: Daň z příj.fyz.os.z sam.výd.č. | E10: 10000
B11: 0000 | C11: 1121 | D11: Daň z příjmů právnických osob | E11: 550000
B12: 0000 | C12: 1122 | D12: Daň z příjmů práv.osob za obce | E12: 50000
B13: 0000 | C13: 1211 | D13: Daň z přidané hodnoty | E13: 1300000
B14: 0000 | C14: 1335 | D14: Popl.-odnětí poz.-funkce lesa | E14: 0
B15: 0000 | C15: 1337 | D15: Poplatek za komunální odpad | E15: 319000
B16: 0000 | C16: 1341 | D16: Poplatek ze psů | E16: 12000
B17: 0000 | C17: 1343 | D17: Popl.užívání veřej.prostranst. | E17: 0
B18: 0000 | C18: 1344 | D18: Poplatek ze vstupného | E18: 0
B19: 0000 | C19: 1381 | D19: Daň z hazardních her | E19: 17000
B20: 0000 | C20: 1361 | D20: Správní poplatky | E20: 1000
B21: 0000 | C21: 1511 | D21: Daň z nemovitostí | E21: 290000
B22: 0000 | C22: 4111 | D22: Neinv.přij.transf.ze VPS SR | E22: 0
B23: 0000 | C23: 4112 | D23: Neinv.přij.tran.ze SR-s.d.vzt. | E23: 65000
B24: 0000 | C24: 4122 | D24: Neinv.přijaté transf.od krajů - dotace | E24: 0
B25: 0000 | C25: 4222 | D25: inv.přijaté transf.od krajů - dotace | E25: 0
B27: 1036 | C27: 2131 | D27: Příjmy z pronájmu pozemků - lesy | E27: 333000
B28: 1036 | D28: Správa v lesním hospodářství | E28: =SUM(E27) -> 333000
B30: 6171 | C30: 2111 | D30: Příj.z poskyt.služeb a výrobků | E30: 10000
B31: 6171 | C31: 2119 | D31: Ostatní příjmy z vlastní čin. | E31: 30000
B32: 6171 | C32: 2131 | D32: Příjmy z pronájmu pozemků | E32: 23000
B33: 6171 | C33: 2132 | D33: Příj.z pronáj.ost.nemovitostí | E33: 108000
B34: 6171 | C34: 3111 | D34: Příjmy z prodeje pozemků | E34: 10000
B35: 6171 | D35: Činnost místní správy | E35: =SUM(E30:E34) -> 181000
B37: 6310 | C37: 2141 | D37: Příjmy z úroků (část) | E37: 8000
B38: 6310 | D38: Obec.příj.a výd.z fin.operací | E38: =SUM(E37) -> 8000
D41: Příjmy celkem | E41: =E38+E35+E28+E25+E24+E23+E21+E20+E19+E18+E17+E16+E15+E14+E13+E12+E11+E10+E9 -> 3986000

Sheet výdaje rozepsané
D1: Rozpočet 2021
B3: I.Rozpočtové výdaje
B5: Paragraf | C5: Položka
B6: a | C6: b | E6: 2021
B7: 2212 | C7: 6121 | D7: Budovy,haly,stavby
B8: 2212 | C8: 5171 | D8: Opravy a udržování | E8: 250000
B9: 2212 | C9: 5169 | D9: Nákup ostatních služeb - projekt | E9: 100000
B10: 2212 | D10: Silnice | E10: =E8+E9 -> 350000
B12: 2292 | C12: 5323 | D12: Neinvest. Transfer krajům - doprava | E12: 13600
B13: 2292 | D13: Dopravní obslužnost | E13: =SUM(E12) -> 13600
B15: 2321 | C15: 6379 | D15: Ost.inv.transfery obyvatelstvu | E15: 120000
B16: 2321 | D16: Odvád.a čist.odp.vod | E16: =SUM(E15) -> 120000
B18: 3319 | C18: 5169 | D18: Nákup ostatních služeb | E18: 5000
B19: 3319 | C19: 5339 | D19: Neinv.transf. cizím přísp.org.
B20: 3319 | D20: Ost. záležitosti kultury | E20: =SUM(E18:E19) -> 5000
B22: 3326 | C22: 5171 | D22: POŘÍZENÍ A OBNOVA - POMNÍK | E22: 0
B23: 3326 | D23: POŘÍZENÍ A OBNOVA - POMNÍK
B24: 3341 | C24: 5171 | D24: Opravy a udržování | E24: 9901
B25: 3341 | D25: Rozhlas a televize | E25: =SUM(E24) -> 9901
B27: 3419 | C27: 5171 | D27: Opravy a udržování
B28: 3419 | C28: 5339 | D28: Neinv.transf. cizím přísp.org. | E28: 49999
B29: 3419 | D29: Ostatní tělovýchovná činnost | E29: =SUM(E27:E28) -> 49999
B31: 3429 | C31: 5339 | D31: Neinv.transf. cizím přísp.org. | E31: 20000
B32: 3429 | D32: Ostatní zájmová činnost - ženy | E32: =SUM(E31) -> 20000
B34: 3613 | C34: 5171 | D34: Opravy a udržování - oprava hostinec | E34: 955000
B35: 3613 | D35: Nebytové hopodářství | E35: =E34 -> 955000
B36: 3631 | C36: 5171 | D36: Opravy a udržování | E36: 25000
B37: 3631 | C37: 5321 | D37: Neinvestiční transfery obcím | E37: 10000
B38: 3631 | D38: Veřejné osvětlení | E38: =SUM(E36:E37) -> 35000
B40: 3639 | C40: 6121 | D40: Budovy | E40: 0
B41: 3639
B43: 3722 | C43: 5169 | D43: Nákup ostatních služeb | E43: 450000
B44: 3722 | C44: 5329 | D44: ostatní nein. transfery obcím -odpady | E44: 5000
B45: 3722 | D45: Sběr a svoz komunálních odpadů | E45: =SUM(E43:E44) -> 455000
B47: 3745 | C47: 5021 | D47: Ostatní osobní výdaje | E47: 70000
B48: 3745 | C48: 5137 | D48: DHDM | E48: 10000
B49: 3745 | C49: 5139 | D49: Nákup materiálu j.n. | E49: 10000
B50: 3745 | C50: 5156 | D50: Pohonné hmoty a maziva | E50: 10000
B51: 3745 | C51: 5169 | D51: Nákup ostatních služeb | E51: 90000
B52: 3745 | C52: 5171 | D52: opravy a udržování | E52: 10000
B53: 3745 | D53: Péče o vzhled obcí a veř.zeleň | E53: =SUM(E47:E52) -> 200000
B55: 5299 | C55: 5901 | D55: Nespecifikované rezervy | E55: 10000
B56: 5299 | D56: Ost.zál.civ.přip.na kriz.stav | E56: =SUM(E55) -> 10000
B58: 5512 | C58: 5137 | D58: DHDM | E58: 10000
B59: 5512 | C59: 5139 | D59: Nákup materiálu j.n. | E59: 10000
B60: 5512 | C60: 5156 | D60: Pohonné hmoty a maziva | E60: 3000
B61: 5512 | C61: 5169 | D61: Nákup ostatních služeb | E61: 5000
B62: 5512 | C62: 5171 | D62: opravy a udržování | E62: 10000
B63: 5512 | C63: 5175 | D63: pohoštění | E63: 3000
B65: 5512 | D65: PO - dobrovolná část | E65: =SUM(E58:E64) -> 41000
B67: 6112 | C67: 5023 | D67: Odměny čl. zastup. Obcí | E67: 880000
B68: 6112 | C68: 5032 | D68: Pov.pojistné na veř.zdrav.poj. | E68: 79000
B69: 6112 | C69: 5173 | D69: Cestovné (tuzem.i zahranič.) | E69: 22000
B70: 6112 | C70: 5175 | D70: Pohoštění | E70: 10000
B71: 6112 | D71: Zastupitelstva obcí | E71: =SUM(E67:E70) -> 991000
B73: Paragraf | C73: Položka
B74: a | C74: b
B75: 6171 | C75: 5021 | D75: ostatní osobní výdaje | E75: 20000
B76: 6171 | C76: 5137 | D76: DHDM | E76: 30000
B77: 6171 | C77: 5139 | D77: Nákup materiálu j.n. | E77: 10000
B78: 6171 | C78: 5154 | D78: Elektrická energie | E78: 180000
B79: 6171 | C79: 5161 | D79: Služby pošt | E79: 1500
B80: 6171 | C80: 5162 | D80: Služby telekom. a radiokom. | E80: 20000
B81: 6171 | C81: 5163 | D81: Služby peněžních ústavů
B82: 6171 | C82: 5169 | D82: Nákup ostatních služeb | E82: 300000
B83: 6171 | C83: 5171 | D83: Opravy a udržování | E83: 90000
B84: 6171 | C84: 5172 | D84: Programové vybavení | E84: 15000
B85: 6171 | C85: 5182 | D85: Poskyt zálohy vlast. pokladně
B86: 6171 | C86: 5194 | D86: Věcné dary | E86: 2000
B87: 6171 | C87: 5321 | D87: Neinvestiční transfery obcím | E87: 2000
B88: 6171 | C88: 5362 | D88: Platby daní a poplatků SR | E88: 50000
B89: 6171 | C89: 5366 | D89: Výdaje z FV min.let kraj-obec
B90: 6171 | D90: Činnost místní správy | E90: =E88+E87+E86+E84+E83+E82+E80+E79+E78+E77+E76+E75 -> 720500
B92: 6310 | C92: 5163 | D92: Služby peněžních ústavú | E92: 10000
B93: 6310 | D93: Obec.př. a výd. Z fin. Operací | E93: 10000
D96: Výdaje celkem | E96: =+E93+E90+E71+E65+E56+E53+E45+E38+E35+E32+E29+E25+E20+E16+E13+E10 -> 3986000

Sheet rekapitulace
B5: REKAPITULACE ROZPOČTU 2020 | E5: ZPOČTU 2021
B9: celkové příjmy | E9: =příjmy!E41 -> 3986000
B11: celkové výdaje | E11: ='výdaje rozepsané'!E96 -> 3986000
B14: rozdíl | E14: =E9-E11 -> 0
B17: Rozpočet je navržen jako ztrátový | E17: o vyrovnaný.

Sheet výdaje nerozepsané (hidden)
D1: Rozpočet 2016
B3: I.Rozpočtové výdaje
F4: 2015-09-07
B5: Paragraf | C5: Položka | E5: Schválený | F5: Rozpočet | G5: Rozpočet 2015 | H5: Rozpočet 2016
B6: a | C6: b | E6: rozpočet 2015 | F6: po změnách č.1 | G6: po změnách č.2 | H6: výdaje
B8: 2212 | C8: 6121 | D8: Budovy,haly,stavby | E8: 1200000 | H8: 1500000
B9: 2212 | C9: 5171 | D9: Opravy a udržování | E9: 1300000 | F9: 200000 | G9: 50000 | H9: 50000
B10: 2212 | C10: 5169 | D10: Nákup ostatních služeb - projekt | E10: 0 | F10: 100000 | G10: 100000 | H10: 100000
B11: 2212 | D11: Silnice | E11: =SUM(E9:E10) -> 1300000 | F11: =SUM(F9:F10) -> 300000 | G11: =SUM(G9:G10) -> 150000 | H11: =SUM(H8:H10) -> 1650000
B13: 2221 | C13: 5193 | D13: Výd.na dopravní úz.obslužnost | E13: 10350 | F13: 10700 | G13: 10700 | H13: 15000
B14: 2221 | D14: Provoz veřej.silniční dopravy | E14: =SUM(E13) -> 10350 | F14: =SUM(F13) -> 10700 | G14: =SUM(G13) -> 10700 | H14: =SUM(H13) -> 15000
B16: 2321 | C16: 6379 | D16: Ost.inv.transfery obyvatelstvu | E16: 180000 | F16: 180000 | G16: 90000 | H16: 120000
B17: 2321 | D17: Odvád.a čist.odp.vod,nak.s kal | E17: =SUM(E16) -> 180000 | F17: =SUM(F16) -> 180000 | G17: =SUM(G16) -> 90000 | H17: =SUM(H16) -> 120000
B19: 3319 | C19: 5169 | D19: Nákup ostatních služeb | E19: 10000 | F19: 10000 | G19: 10000 | H19: 10000
B20: 3319 | C20: 5339 | D20: Neinv.transf. cizím přísp.org. | E20: 20000 | F20: 0 | G20: 0 | H20: 0
B21: 3319 | D21: Ost. záležitosti kultury | E21: =SUM(E19:E20) -> 30000 | F21: =SUM(F19:F20) -> 10000 | G21: =SUM(G19:G20) -> 10000 | H21: =SUM(H19:H20) -> 10000
B23: 3341 | C23: 5171 | D23: Opravy a udržování | E23: 5000 | F23: 5000 | G23: 5000 | H23: 5000
B24: 3341 | D24: Rozhlas a televize | E24: =SUM(E23) -> 5000 | F24: =SUM(F23) -> 5000 | G24: =SUM(G23) -> 5000 | H24: =SUM(H23) -> 5000
B26: 3419 | C26: 5171 | D26: Opravy a udržování | E26: 100000 | F26: 100000 | G26: 0 | H26: 100000
B27: 3419 | C27: 5339 | D27: Neinv.transf. cizím přísp.org. | E27: 100000 | F27: 100000 | G27: 100000 | H27: 50000
B28: 3419 | D28: Ostatní tělovýchovná činnost | E28: =SUM(E26:E27) -> 200000 | F28: =SUM(F26:F27) -> 200000 | G28: =SUM(G26:G27) -> 100000 | H28: =SUM(H26:H27) -> 150000
B30: 3429 | C30: 5339 | D30: Neinv.transf. cizím přísp.org. | E30: 0 | F30: 20000 | G30: 20000 | H30: 20000
B31: 3429 | D31: Ostatní zájmová činnost - ženy | E31: =SUM(E30) -> 0 | F31: =SUM(F30) -> 20000 | G31: =SUM(G30) -> 20000 | H31: =SUM(H30) -> 20000
B33: 3631 | C33: 5171 | D33: Opravy a udržování | E33: 40000 | F33: 40000 | G33: 20000 | H33: 600000
B34: 3631 | C34: 5321 | D34: Neinvestiční transfery obcím | E34: 12000 | F34: 7260 | G34: 7260 | H34: 10000
B35: 3631 | D35: Veřejné osvětlení | E35: =SUM(E33:E34) -> 52000 | F35: =SUM(F33:F34) -> 47260 | G35: =SUM(G33:G34) -> 27260 | H35: =SUM(H33:H34) -> 610000
B37: 3635 | C37: 6119 | D37: aktualizace ÚP | E37: 180000 | F37: 0 | G37: 0 | H37: 180000
B38: 3635 | D38: Územní plánování | E38: =SUM(E37) -> 180000 | F38: =SUM(F37) -> 0 | G38: 0 | H38: =SUM(H37) -> 180000
B40: 3722 | C40: 5169 | D40: Nákup ostatních služeb | E40: 305000 | F40: 305000 | G40: 305000 | H40: 350000
B41: 3722 | C41: 5321 | D41: Neinvestiční transfery obcím | E41: 4500 | F41: 4500 | G41: 4500 | H41: 5000
B42: 3722 | D42: Sběr a svoz komunálních odpadů | E42: =SUM(E40:E41) -> 309500 | F42: =SUM(F40:F41) -> 309500 | G42: =SUM(G40:G41) -> 309500 | H42: =SUM(H40:H41) -> 355000
B44: 3745 | C44: 5021 | D44: Ostatní osobní výdaje | E44: 25000 | F44: 50000 | G44: 50000 | H44: 50000
B45: 3745 | C45: 5139 | D45: Nákup materiálu j.n. | E45: 5000 | F45: 5000 | G45: 5000 | H45: 20000
B46: 3745 | C46: 5156 | D46: Pohonné hmoty a maziva | E46: 6000 | F46: 6000 | G46: 6000 | H46: 6000
B47: 3745 | C47: 5169 | D47: Nákup ostatních služeb | E47: 260000 | F47: 400000 | G47: 150000 | H47: 250000
B48: 3745 | C48: 5171 | D48: Opravy a udržování | E48: 6000 | F48: 6000 | G48: 12000 | H48: 10000
B49: 3745 | D49: Péče o vzhled obcí a veř.zeleň | E49: =SUM(E44:E48) -> 302000 | F49: =SUM(F44:F48) -> 467000 | G49: =SUM(G44:G48) -> 223000 | H49: =SUM(H44:H48) -> 336000
F51: 2015-09-07
B52: Paragraf | C52: Položka | E52: Schválený | F52: Rozpočet | G52: Rozpočet 2015 | H52: Rozpočet 2016
B53: a | C53: b | E53: rozpočet 2015 | F53: po změnách č.1 | G53: po změnách č.2
B54: 5299 | C54: 5901 | D54: Nespecifikované rezervy | E54: 10000 | F54: 10000 | G54: 10000 | H54: 10000
B55: 5299 | D55: Ost.zál.civ.přip.na kriz.stav | E55: =SUM(E54) -> 10000 | F55: =SUM(F54) -> 10000 | G55: =SUM(G54) -> 10000 | H55: =SUM(H54) -> 10000
B57: 5512 | C57: 5137 | D57: DHPM | H57: 70000
B58: 5512 | C58: 5139 | D58: Nákup materiálu j.n. | E58: 9000 | F58: 9000 | G58: 9000 | H58: 10000
B59: 5512 | C59: 5156 | D59: Pohonné hmoty a maziva | E59: 1000 | F59: 3000 | G59: 3000 | H59: 3000
B60: 5512 | C60: 5169 | D60: Nákup ostatních služeb | E60: 0 | F60: 5000 | G60: 5000 | H60: 5000
B61: 5512 | C61: 5362 | D61: Platby daní a poplatků | E61: 0 | F61: 3600 | G61: 3600 | H61: 3600
B62: 5512 | D62: PO - dobrovolná část | E62: =SUM(E58:E61) -> 10000 | F62: =SUM(F58:F61) -> 20600 | G62: =SUM(G58:G61) -> 20600 | H62: =SUM(H57:H61) -> 91600
B64: 6112 | C64: 5023 | D64: Odměny čl. zastup. Obcí | E64: 0 | F64: 458400 | G64: 458400 | H64: 500000
B65: 6112 | C65: 5032 | D65: Pov.pojistné na veř.zdrav.poj. | E65: 64800 | F65: 64800 | G65: 64800 | H65: 65000
B66: 6112 | C66: 5173 | D66: Cestovné (tuzem.i zahranič.) | E66: 19000 | F66: 19000 | G66: 19000 | H66: 19000
B67: 6112 | C67: 5175 | D67: Pohoštění | E67: 10000 | F67: 10000 | G67: 10000 | H67: 10000
B68: 6112 | D68: Zastupitelstva obcí | E68: =SUM(E64:E67) -> 93800 | F68: =SUM(F64:F67) -> 552200 | G68: =SUM(G64:G67) -> 552200 | H68: =SUM(H64:H67) -> 594000
B70: 6171 | C70: 5021 | D70: Ostatní osobní výdaje | E70: 15000 | F70: 15000 | G70: 15000 | H70: 15000
B71: 6171 | C71: 5137 | D71: DHDM | E71: 50000 | F71: 50000 | G71: 50000 | H71: 50000
B72: 6171 | C72: 5139 | D72: Nákup materiálu j.n. | E72: 10000 | F72: 10000 | G72: 10000 | H72: 10000
B73: 6171 | C73: 5154 | D73: Elektrická energie | E73: 135000 | F73: 135000 | G73: 135000 | H73: 135000
B74: 6171 | C74: 5161 | D74: Služby pošt | E74: 1000 | F74: 3000 | G74: 3000 | H74: 3000
B75: 6171 | C75: 5162 | D75: Služby telekom. a radiokom. | E75: 18000 | F75: 20000 | G75: 20000 | H75: 20000
B76: 6171 | C76: 5163 | D76: Služby peněžních ústavů | E76: 13000 | F76: 0 | G76: 0 | H76: 0
B77: 6171 | C77: 5169 | D77: Nákup ostatních služeb | E77: 190000 | F77: 190000 | G77: 190000 | H77: 190000
B78: 6171 | C78: 5171 | D78: Opravy a udržování | E78: 130000 | F78: 130000 | G78: 130000 | H78: 130000
B79: 6171 | C79: 5172 | D79: Programové vybavení | E79: 10000 | F79: 10000 | G79: 10000 | H79: 10000
B80: 6171 | C80: 5182 | D80: Poskyt zálohy vlast. Pokladně
B81: 6171 | C81: 5194 | D81: Věcné dary | E81: 1000 | F81: 1000 | G81: 1000 | H81: 1000
B82: 6171 | C82: 5362 | D82: Platby daní a poplatků SR | E82: 41000 | F82: 41000 | G82: 41000 | H82: 41000
B83: 6171 | C83: 5366 | D83: Výdaje z FV min.let kraj-obec | E83: 0 | F83: 17770 | G83: 17770 | H83: 17770
B84: 6171 | D84: Činnost místní správy | E84: =SUM(E70:E83) -> 614000 | F84: =SUM(F70:F83) -> 622770 | G84: =SUM(G70:G83) -> 622770 | H84: =SUM(H70:H83) -> 622770
B86: 6310 | C86: 5163 | D86: Služby peněžních ústavú | E86: 5000 | F86: 10000 | G86: 10001 | H86: 10000
B87: 6310 | D87: Obec.př. a výd. Z fin. Operací | E87: =SUM(E86) -> 5000 | F87: =SUM(F86) -> 10000 | G87: =SUM(G86) -> 10001 | H87: =SUM(H86) -> 10000
D89: Výdaje celkem | E89: =E87+E84+E68+E62+E55+E49+E42+E38+E35+E28+E24+E21+E17+E14+E11 -> 3301650 | F89: =F87+F84+F68+F62+F55+F49+F42+F38+F35+F31+F28+F24+F21+F17+F14+F11 -> 2765030 | G89: =G87+G84+G68+G62+G55+G49+G42+G38+G35+G31+G28+G24+G21+G17+G14+G11 -> 2161031 | H89: =H87+H84+H68+H62+H55+H49+H42+H38+H35+H31+H28+H24+H21+H17+H14+H11 -> 4779370
E96: starosta

Sheet nerozepsané výdaje
D1: Rozpočet 2021
B3: I.Rozpočtové výdaje - nerozepsané
B5: Paragraf | C5: Položka
B6: a | C6: b
B7: 2212 | C7: 6121 | D7: Budovy,haly,stavby | E7: 2000000
B8: 2212 | C8: 5171 | D8: Opravy a udržování | E8: 50000
B9: 2212 | C9: 5169 | D9: Nákup ostatních služeb - projekt | E9: 20000
B10: 2212 | D10: Silnice | E10: ='výdaje rozepsané'!E10 -> 350000
B12: 2221 | C12: 5193 | D12: Výd.na dopravní úz.obslužnost | E12: 11250
B13: 2292 | D13: Dopravní obslužnost | E13: ='výdaje rozepsané'!E13 -> 13600
B15: 2321 | C15: 6379 | D15: Ost.inv.transfery obyvatelstvu | E15: 120000
B16: 2321 | D16: Odvád.a čist.odp.vod | E16: ='výdaje rozepsané'!E16 -> 120000
B18: 3319 | C18: 5169 | D18: Nákup ostatních služeb | E18: 5000
B19: 3319 | C19: 5339 | D19: Neinv.transf. cizím přísp.org.
B20: 3319 | D20: Ost. záležitosti kultury | E20: ='výdaje rozepsané'!E20 -> 5000
B22: 3326 | C22: 5171 | D22: POŘÍZENÍ A OBNOVA - POMNÍK | E22: 0
B23: 3326 | D23: POŘÍZENÍ A OBNOVA - POMNÍK
B24: 3341 | C24: 5171 | D24: Opravy a udržování | E24: 5000
B25: 3341 | D25: Rozhlas a televize | E25: ='výdaje rozepsané'!E25 -> 9901
B27: 3419 | C27: 5171 | D27: Opravy a udržování | E27: 100000
B28: 3419 | C28: 5339 | D28: Neinv.transf. cizím přísp.org. | E28: 50000
B29: 3419 | D29: Ostatní tělovýchovná činnost | E29: ='výdaje rozepsané'!E29 -> 49999
B31: 3429 | C31: 5339 | D31: Neinv.transf. cizím přísp.org. | E31: 20000
B32: 3429 | D32: Ostatní zájmová činnost - ženy | E32: ='výdaje rozepsané'!E32 -> 20000
B34: 3631 | C34: 5171 | D34: Opravy a udržování | E34: 15000
B35: 3631 | C35: 5321 | D35: Neinvestiční transfery obcím | E35: 10000
B36: 3613 | D36: Nebytové hospodářství | E36: 950000
B38: 3631 | D38: Veřejné osvětlení | E38: ='výdaje rozepsané'!E38 -> 35000
B40: 3635 | C40: 6119 | D40: aktualizace ÚP | E40: 130000
B41: 3635 | D41: Územní plánování | E41: 0
B43: 3639 | C43: 6121 | D43: Budovy | E43: 0
B44: 3639
B45: 3722 | C45: 5169 | D45: Nákup ostatních služeb | E45: 300000
B46: 3722 | C46: 5321 | D46: Neinvestiční transfery obcím | E46: 5000
B47: 3722 | D47: Sběr a svoz komunálních odpadů | E47: ='výdaje rozepsané'!E45 -> 455000
B49: 3745 | C49: 5021 | D49: Ostatní osobní výdaje | E49: 60000
C50: 5137 | D50: DHDM | E50: 10000
B51: 3745 | C51: 5139 | D51: Nákup materiálu j.n. | E51: 10000
B52: 3745 | C52: 5156 | D52: Pohonné hmoty a maziva | E52: 10000
B53: 3745 | C53: 5169 | D53: Nákup ostatních služeb | E53: 100000
B54: 3745 | C54: 5171 | D54: opravy a udržování | E54: 10000
B55: 3745 | D55: Péče o vzhled obcí a veř.zeleň | E55: ='výdaje rozepsané'!E53 -> 200000
B57: 5299 | C57: 5901 | D57: Nespecifikované rezervy | E57: 10000
B58: 5299 | D58: Ost.zál.civ.přip.na kriz.stav | E58: ='výdaje rozepsané'!E56 -> 10000
B60: 5512 | C60: 5137 | D60: DHPM | E60: 10000
B61: 5512 | C61: 5139 | D61: Nákup materiálu j.n. | E61: 10000
B62: 5512 | C62: 5156 | D62: Pohonné hmoty a maziva | E62: 3000
B63: 5512 | C63: 5169 | D63: Nákup ostatních služeb | E63: 5000
B64: 5512 | C64: 5171 | D64: opravy a udržování | E64: 30000
B65: 5512 | C65: 5175 | D65: pohoštění | E65: 3000
B66: 5512 | C66: 5362 | D66: Platby daní a poplatků
B67: 5512 | D67: PO - dobrovolná část | E67: ='výdaje rozepsané'!E65 -> 41000
B69: 6112 | C69: 5023 | D69: Odměny čl. zastup. Obcí | E69: 540000
B70: 6112 | C70: 5032 | D70: Pov.pojistné na veř.zdrav.poj. | E70: 73000
B71: 6112 | C71: 5173 | D71: Cestovné (tuzem.i zahranič.) | E71: 22000
B72: 6112 | C72: 5175 | D72: Pohoštění | E72: 10000
B73: 6112 | D73: Zastupitelstva obcí | E73: ='výdaje rozepsané'!E71 -> 991000
B81: Paragraf | C81: Položka | E81: návrh
B82: a | C82: b | E82: 2017
B83: 6171 | C83: 5137 | D83: DHDM | E83: 30000
B84: 6171 | C84: 5139 | D84: Nákup materiálu j.n. | E84: 10000
B85: 6171 | C85: 5154 | D85: Elektrická energie | E85: 135000
B86: 6171 | C86: 5161 | D86: Služby pošt | E86: 3000
B87: 6171 | C87: 5162 | D87: Služby telekom. a radiokom. | E87: 20000
B88: 6171 | C88: 5163 | D88: Služby peněžních ústavů
B89: 6171 | C89: 5169 | D89: Nákup ostatních služeb | E89: 200000
B90: 6171 | C90: 5171 | D90: Opravy a udržování | E90: 100000
B91: 6171 | C91: 5172 | D91: Programové vybavení | E91: 15000
B92: 6171 | C92: 5182 | D92: Poskyt zálohy vlast. Pokladně
B93: 6171 | C93: 5194 | D93: Věcné dary | E93: 1000
B94: 6171 | C94: 5362 | D94: Platby daní a poplatků SR | E94: 41000
B95: 6171 | C95: 5366 | D95: Výdaje z FV min.let kraj-obec | E95: 13000
B96: 6171 | D96: Činnost místní správy | E96: ='výdaje rozepsané'!E90 -> 720500
B98: 6310 | C98: 5163 | D98: Služby peněžních ústavú | E98: 10000
B99: 6310 | D99: Obec.př. a výd. Z fin. Operací | E99: ='výdaje rozepsané'!E93 -> 10000
D102: Výdaje celkem | E102: =SUM(E99,E96,E73,E67,E58,E55,E47,E41,E38,E36,E32,E29,E25,E20,E16,E13,E10) -> 3981000

Sheet říjmy roz.
D1: Rozpočet 2021
B3: I.Rozpočtové příjmy
B6: Paragraf | C6: Položka
B7: a | C7: b | E7: 2017 | F7: 2020 | G7: 2021
B9: 0000 | C9: 1111 | D9: Daň z příj.fyz.osob ze závis.č | F9: 850000 | G9: 850000
B10: 0000 | C10: 1112 | D10: Daň z příj.fyz.os.z sam.výd.č. | F10: 16000 | G10: 10000
B11: 0000 | C11: 1121 | D11: Daň z příjmů právnických osob | F11: 650000 | G11: 550000
B12: 0000 | C12: 1122 | D12: Daň z příjmů práv.osob za obce | F12: 50000 | G12: =příjmy!E12 -> 50000
B13: 0000 | C13: 1211 | D13: Daň z přidané hodnoty | F13: 1400000 | G13: 1300000
B14: 0000 | C14: 1335 | D14: Popl.-odnětí poz.-funkce lesa | F14: 0 | G14: =příjmy!E14 -> 0
B15: 0000 | C15: 1337 | D15: Poplatek za komunální odpad | F15: 319000 | G15: =příjmy!E15 -> 319000
B16: 0000 | C16: 1341 | D16: Poplatek ze psů | F16: 12000 | G16: =příjmy!E16 -> 12000
B17: 0000 | C17: 1343 | D17: Popl.užívání veřej.prostranst. | F17: 0 | G17: =příjmy!E17 -> 0
B18: 0000 | C18: 1344 | D18: Poplatek ze vstupného | F18: 0 | G18: =příjmy!E18 -> 0
B19: 0000 | C19: 1381 | D19: Daň z hazardních her | F19: 9000 | G19: =příjmy!E19 -> 17000
B20: 0000 | C20: 1361 | D20: Správní poplatky | F20: 1000 | G20: =příjmy!E20 -> 1000
B21: 0000 | C21: 1511 | D21: Daň z nemovitostí | F21: 290000 | G21: =příjmy!E21 -> 290000
B22: 0000 | C22: 4111 | D22: Neinv.přij.transf.ze VPS SR | F22: 0 | G22: =příjmy!E22 -> 0
B23: 0000 | C23: 4112 | D23: Neinv.přij.tran.ze SR-s.d.vzt. | F23: 65000 | G23: =příjmy!E23 -> 65000
B24: 0000 | C24: 4122 | D24: Neinv.přijaté transf.od krajů - dotace | F24: 0 | G24: =příjmy!E24 -> 0
B25: 0000 | C25: 4134 | D25: Převody z rozpočtových účtů | F25: 0 | G25: 0
B26: 0000 | C26: 4222 | D26: inv.přijaté transf.od krajů - dotace | F26: 0 | G26: =příjmy!E25 -> 0
B28: 1036 | C28: 2131 | D28: Příjmy z pronájmu pozemků - lesy | F28: 333000 | G28: =příjmy!E27 -> 333000
B29: 1036 | D29: Správa v lesním hospodářství | F29: 333000 | G29: =příjmy!E28 -> 333000
B31: 6171 | C31: 2111 | D31: Příj.z poskyt.služeb a výrobků | F31: 15000 | G31: =příjmy!E30 -> 10000
B32: 6171 | C32: 2119 | D32: Ostatní příjmy z vlastní čin. | F32: 30000 | G32: =příjmy!E31 -> 30000
B33: 6171 | C33: 2131 | D33: Příjmy z pronájmu pozemků | F33: 23000 | G33: =příjmy!E32 -> 23000
B34: 6171 | C34: 2132 | D34: Příj.z pronáj.ost.nemovitostí | F34: 100000 | G34: =příjmy!E33 -> 108000
B35: 6171 | C35: 3111 | D35: Příjmy z prodeje pozemků | F35: 0 | G35: =příjmy!E34 -> 10000
B36: 6171 | D36: Činnost místní správy | F36: 168000 | G36: =příjmy!E35 -> 181000
B38: 6310 | C38: 2141 | D38: Příjmy z úroků (část) | F38: 3000 | G38: =příjmy!E37 -> 8000
B39: 6310 | D39: Obec.příj.a výd.z fin.operací | F39: 3000 | G39: =příjmy!E38 -> 8000
D42: Příjmy celkem | F42: =+F39+F29++F23+F21+F20+F19+F15+F13+F12+F11+F10+F9+F36 -> 4154000 | G42: =G39+G36+G29+G26+G24+G23+G21+G20+G19+G18+G17+G16+G15+G14+G13+G12+G11+G10+G9 -> 3986000

Sheet výdaje rozšířené
D1: Rozpočet 2021
B3: I.Rozpočtové výdaje - nerozepsané
B5: Paragraf | C5: Položka
B6: a | C6: b | E6: 2019 | F6: 2020 | G6: 2021
B7: 2212 | C7: 6121 | D7: Budovy,haly,stavby | G7: 2000000
B8: 2212 | C8: 5171 | D8: Opravy a udržování | G8: 50000
B9: 2212 | C9: 5169 | D9: Nákup ostatních služeb - projekt | G9: 20000
B10: 2212 | D10: Silnice | F10: 150000 | G10: ='výdaje rozepsané'!E10 -> 350000
B12: 2221 | C12: 5193 | D12: Výd.na dopravní úz.obslužnost | G12: 11250
B13: 2221 | D13: Provoz veřej.silniční dopravy | F13: 13000 | G13: 13600
B15: 2321 | C15: 6379 | D15: Ost.inv.transfery obyvatelstvu | G15: 120000
B16: 2321 | D16: Odvád.a čist.odp.vod | F16: 150000 | G16: ='výdaje rozepsané'!E16 -> 120000
B18: 3319 | C18: 5169 | D18: Nákup ostatních služeb | G18: 5000
B19: 3319 | C19: 5339 | D19: Neinv.transf. cizím přísp.org.
B20: 3319 | D20: Ost. záležitosti kultury | F20: 5000 | G20: ='výdaje rozepsané'!E20 -> 5000
B22: 3326 | C22: 5171 | D22: POŘÍZENÍ A OBNOVA - POMNÍK | G22: 0
B23: 3326 | D23: POŘÍZENÍ A OBNOVA - POMNÍK
B24: 3341 | C24: 5171 | D24: Opravy a udržování | G24: 5000
B25: 3341 | D25: Rozhlas a televize | F25: 5000 | G25: ='výdaje rozepsané'!E25 -> 9901
B27: 3419 | C27: 5171 | D27: Opravy a udržování | G27: 100000
B28: 3419 | C28: 5339 | D28: Neinv.transf. cizím přísp.org. | G28: 50000
B29: 3419 | D29: Ostatní tělovýchovná činnost | F29: 499999 | G29: ='výdaje rozepsané'!E29 -> 49999
B31: 3429 | C31: 5339 | D31: Neinv.transf. cizím přísp.org. | G31: 20000
B32: 3429 | D32: Ostatní zájmová činnost - ženy | F32: 20000 | G32: ='výdaje rozepsané'!E32 -> 20000
B33: 3613 | D33: Nebytové hospodářství | F33: 1850000 | G33: 955000
B34: 3631 | C34: 5171 | D34: Opravy a udržování | G34: 15000
B35: 3631 | C35: 5321 | D35: Neinvestiční transfery obcím | G35: 10000
B36: 3631 | D36: Veřejné osvětlení | F36: 60000 | G36: ='výdaje rozepsané'!E38 -> 35000
B38: 3635 | C38: 6119 | D38: aktualizace ÚP | G38: 130000
B39: 3635 | D39: Územní plánování | F39: 50000 | G39: 0
B41: 3639 | C41: 6121 | D41: Budovy | G41: 0
B42: 3639
B43: 3722 | C43: 5169 | D43: Nákup ostatních služeb | G43: 300000
B44: 3722 | C44: 5321 | D44: Neinvestiční transfery obcím | G44: 5000
B45: 3639 | D45: Komunální služby a ostatní rozvoj
B47: 3722 | D47: Sběr a svoz komunálních odpadů | F47: 425000 | G47: ='výdaje rozepsané'!E45 -> 455000
B49: 3745 | C49: 5021 | D49: Ostatní osobní výdaje | G49: 60000
C50: 5137 | D50: DHDM | G50: 10000
B51: 3745 | C51: 5139 | D51: Nákup materiálu j.n. | G51: 10000
B52: 3745 | C52: 5156 | D52: Pohonné hmoty a maziva | G52: 10000
B53: 3745 | C53: 5169 | D53: Nákup ostatních služeb | G53: 100000
B54: 3745 | C54: 5171 | D54: opravy a udržování | G54: 10000
B55: 3745 | D55: Péče o vzhled obcí a veř.zeleň | F55: 200000 | G55: ='výdaje rozepsané'!E53 -> 200000
B57: 5299 | C57: 5901 | D57: Nespecifikované rezervy | G57: 10000
B58: 5299 | D58: Ost.zál.civ.přip.na kriz.stav | F58: 10000 | G58: ='výdaje rozepsané'!E56 -> 10000
B60: 5512 | C60: 5137 | D60: DHPM | G60: 10000
B61: 5512 | C61: 5139 | D61: Nákup materiálu j.n. | G61: 10000
B62: 5512 | C62: 5156 | D62: Pohonné hmoty a maziva | G62: 3000
B63: 5512 | C63: 5169 | D63: Nákup ostatních služeb | G63: 5000
B64: 5512 | C64: 5171 | D64: opravy a udržování | G64: 30000
B65: 5512 | C65: 5175 | D65: pohoštění | G65: 3000
B66: 5512 | C66: 5362 | D66: Platby daní a poplatků
B67: 5512 | D67: PO - dobrovolná část | F67: 41000 | G67: ='výdaje rozepsané'!E65 -> 41000
B69: 6112 | C69: 5023 | D69: Odměny čl. zastup. Obcí | G69: 540000
B70: 6112 | C70: 5032 | D70: Pov.pojistné na veř.zdrav.poj. | G70: 73000
B71: 6112 | C71: 5173 | D71: Cestovné (tuzem.i zahranič.) | G71: 22000
B72: 6112 | C72: 5175 | D72: Pohoštění | G72: 10000
B73: 6112 | D73: Zastupitelstva obcí | F73: 991000 | G73: ='výdaje rozepsané'!E71 -> 991000
B81: Paragraf | C81: Položka | G81: návrh
B82: a | C82: b | G82: 2017
B83: 6171 | C83: 5137 | D83: DHDM | G83: 30000
B84: 6171 | C84: 5139 | D84: Nákup materiálu j.n. | G84: 10000
B85: 6171 | C85: 5154 | D85: Elektrická energie | G85: 135000
B86: 6171 | C86: 5161 | D86: Služby pošt | G86: 3000
B87: 6171 | C87: 5162 | D87: Služby telekom. a radiokom. | G87: 20000
B88: 6171 | C88: 5163 | D88: Služby peněžních ústavů
B89: 6171 | C89: 5169 | D89: Nákup ostatních služeb | G89: 200000
B90: 6171 | C90: 5171 | D90: Opravy a udržování | G90: 100000
B91: 6171 | C91: 5172 | D91: Programové vybavení | G91: 15000
B92: 6171 | C92: 5182 | D92: Poskyt zálohy vlast. Pokladně
B93: 6171 | C93: 5194 | D93: Věcné dary | G93: 1000
B94: 6171 | C94: 5362 | D94: Platby daní a poplatků SR | G94: 41000
B95: 6171 | C95: 5366 | D95: Výdaje z FV min.let kraj-obec | G95: 13000
B96: 6171 | D96: Činnost místní správy | F96: 770000 | G96: ='výdaje rozepsané'!E90 -> 720500
B98: 6310 | C98: 5163 | D98: Služby peněžních ústavú | G98: 10000
B99: 6310 | D99: Obec.př. a výd. Z fin. Operací | F99: 10000 | G99: ='výdaje rozepsané'!E93 -> 10000
D102: Výdaje celkem | F102: =SUM(F10:F99) -> 5249999 | G102: =G99+G96+G73+G67+G58+G55+G47+G45+G39+G36+G32+G29+G25+G20+G16+G13+G10+G33 -> 3986000

Sheet příjmy rozšířené (hidden)
D1: Rozpočet 2018
B3: I.Rozpočtové příjmy
B6: Paragraf | C6: Položka
B7: a | C7: b | E7: 2016 | F7: 2017* | G7: 2018
B9: 0000 | C9: 1111 | D9: Daň z příj.fyz.osob ze závis.č | E9: 689538 | F9: 770000 | G9: 770000
B10: 0000 | C10: 1112 | D10: Daň z příj.fyz.os.z sam.výd.č. | E10: 39189 | F10: 12000 | G10: 12000
B11: 0000 | C11: 1121 | D11: Daň z příjmů právnických osob | E11: 564110 | F11: 570000 | G11: 570000
B12: 0000 | C12: 1122 | D12: Daň z příjmů práv.osob za obce | E12: 1299600 | F12: 140410 | G12: 50000
B13: 0000 | C13: 1211 | D13: Daň z přidané hodnoty | E13: 928564 | F13: 990000 | G13: 900000
B14: 0000 | C14: 1335 | D14: Popl.-odnětí poz.-funkce lesa | E14: 1474
B15: 0000 | C15: 1337 | D15: Poplatek za komunální odpad | E15: 273659 | F15: 260000 | G15: 280000
B16: 0000 | C16: 1341 | D16: Poplatek ze psů | E16: 11325 | F16: 12000 | G16: 12000
B17: 0000 | C17: 1343 | D17: Popl.užívání veřej.prostranst. | E17: 12642
B18: 0000 | C18: 1344 | D18: Poplatek ze vstupného | F18: 120
B19: 0000 | C19: 1382 | D19: Odvod z loterií | E19: 10783 | F19: 1000 | G19: 10000
B20: 0000 | C20: 1361 | D20: Správní poplatky | E20: 800 | F20: 11000 | G20: 1000
B21: 0000 | C21: 1511 | D21: Daň z nemovitostí | E21: 302732 | F21: 300000 | G21: 247000
B22: 0000 | C22: 4112 | D22: Neinv.přij.tran.ze SR-s.d.vzt. | E22: 29150 | G22: 60000
B23: 0000 | C23: 4122 | D23: Neinv.přijaté transf.od krajů | E23: 55000 | F23: 18307
B24: 0000 | C24: 4134 | D24: Převody z rozpočtových účtů | E24: 34000 | F24: 57800
B25: 0000 | C25: 4222 | D25: inv.přijaté transf.od krajů | E25: 450000 | F25: 450000
B27: 1036 | C27: 2131 | D27: Příjmy z pronájmu pozemků - lesy | E27: 333000 | F27: 333000 | G27: 333000
B28: 1036 | D28: Správa v lesním hospodářství | E28: =SUM(E27) -> 333000 | F28: =SUM(F27) -> 333000 | G28: =SUM(G27) -> 333000
B30: 6171 | C30: 2111 | D30: Příj.z poskyt.služeb a výrobků | E30: 11783 | F30: 31000 | G30: 10000
B31: 6171 | C31: 2119 | D31: Ostatní příjmy z vlastní čin. | E31: 43735 | F31: 38000 | G31: 90000
B32: 6171 | C32: 2131 | D32: Příjmy z pronájmu pozemků | E32: 20076 | F32: 20000 | G32: 20000
B33: 6171 | C33: 2132 | D33: Příj.z pronáj.ost.nemovitostí | E33: 119300 | F33: 115000 | G33: 115000
B34: 6171 | C34: 3111 | D34: Příjmy z prodeje pozemků | E34: 621700 | F34: 72400 | G34: 10000
B35: 6171 | D35: Činnost místní správy | E35: =SUM(E30:E34) -> 816594 | F35: =SUM(F30:F34) -> 276400 | G35: =SUM(G30:G34) -> 245000
B37: 6310 | C37: 2141 | D37: Příjmy z úroků (část) | E37: 2103 | F37: 1500 | G37: 1500
B38: 6310 | D38: Obec.příj.a výd.z fin.operací | E38: =SUM(E37) -> 2103 | F38: =SUM(F37) -> 1500 | G38: =SUM(G37) -> 1500
B39: 6330 | C39: 4134 | D39: Převody z rozpočtových účtů | E39: 2103
D41: Příjmy celkem | E41: =E39+E38+E35+E28+E25+E24+E23+E22+E21+E20+E19+E17+E16+E15+E14+E13+E12+E11+E10+E9 -> 5856366 | F41: =F38+F35+F28+F25+F24+F23+F21+F20+F19+F18+F16+F15+F13+F12+F11+F10+F9 -> 4203537 | G41: =G38+G35+G28+G25+G23+G22+G21+G20+G19+G18+G17+G16+G15+G14+G13+G12+G11+G10+G9 -> 3491500
D43: * po rozpočtové zmšně č.2

Sheet výdaje nerozepsané rozšířené (hidden)
D1: Rozpočet 2018
B3: I.Rozpočtové výdaje - nerozepsané
B5: Paragraf | C5: Položka
B6: a | C6: b | E6: 2016 | F6: 2017* | G6: 2018
B7: 2212 | C7: 6121 | D7: Budovy,haly,stavby | G7: 2000000
B8: 2212 | C8: 5171 | D8: Opravy a udržování | G8: 50000
B9: 2212 | C9: 5169 | D9: Nákup ostatních služeb - projekt | G9: 20000
B10: 2212 | D10: Silnice | E10: 1432318 | F10: ='[1]výdaje nerozepsané'!$J$7 -> 2050000 | G10: ='výdaje rozepsané'!E10 -> 350000
B12: 2221 | C12: 5193 | D12: Výd.na dopravní úz.obslužnost | G12: 11250
B13: 2221 | D13: Provoz veřej.silniční dopravy | E13: 10700 | F13: ='[1]výdaje nerozepsané'!$J$11 -> 11250 | G13: ='výdaje rozepsané'!E13 -> 13600
B15: 2321 | C15: 6379 | D15: Ost.inv.transfery obyvatelstvu | G15: 120000
B16: 2321 | D16: Odvád.a čist.odp.vod | E16: 30000 | F16: ='[1]výdaje nerozepsané'!$J$13 -> 60000 | G16: ='výdaje rozepsané'!E16 -> 120000
B18: 3319 | C18: 5169 | D18: Nákup ostatních služeb | G18: 5000
B19: 3319 | C19: 5339 | D19: Neinv.transf. cizím přísp.org.
B20: 3319 | D20: Ost. záležitosti kultury | E20: 5510 | F20: ='[1]výdaje nerozepsané'!$J$15 -> 5000 | G20: ='výdaje rozepsané'!E20 -> 5000
B22: 3326 | C22: 5171 | D22: POŘÍZENÍ A OBNOVA - POMNÍK | G22: 0
B23: 3326 | D23: POŘÍZENÍ A OBNOVA - POMNÍK
B24: 3341 | C24: 5171 | D24: Opravy a udržování | G24: 5000
B25: 3326 | D25: místní kult.památky | E25: 84040
B27: 3341 | D27: Rozhlas a televize | E27: 1450 | F27: ='[1]výdaje nerozepsané'!$J$15 -> 5000 | G27: ='výdaje rozepsané'!E25 -> 9901
B29: 3419 | C29: 5171 | D29: Opravy a udržování | G29: 100000
B30: 3419 | C30: 5339 | D30: Neinv.transf. cizím přísp.org. | G30: 50000
B31: 3419 | D31: Ostatní tělovýchovná činnost | E31: 50000 | F31: ='[1]výdaje nerozepsané'!$J$19 -> 50000 | G31: ='výdaje rozepsané'!E29 -> 49999
B33: 3429 | C33: 5339 | D33: Neinv.transf. cizím přísp.org. | G33: 20000
B34: 3429 | D34: Ostatní zájmová činnost - ženy | E34: 20000 | F34: ='[1]výdaje nerozepsané'!$J$21 -> 20000 | G34: ='výdaje rozepsané'!E32 -> 20000
B36: 3631 | C36: 5171 | D36: Opravy a udržování | G36: 15000
B37: 3631 | C37: 5321 | D37: Neinvestiční transfery obcím | G37: 10000
B38: 3631 | D38: Veřejné osvětlení | E38: 512735 | F38: ='[1]výdaje nerozepsané'!$J$23 -> 18000 | G38: ='výdaje rozepsané'!E38 -> 35000
B40: 3635 | C40: 6119 | D40: aktualizace ÚP | G40: 130000
B41: 3635 | D41: Územní plánování | F41: ='[1]výdaje nerozepsané'!$J$25 -> 60000 | G41: ='výdaje rozepsané'!#REF! -> 
B43: 3639 | C43: 6121 | D43: Budovy | G43: 0
B44: 3639
B45: 3722 | C45: 5169 | D45: Nákup ostatních služeb | G45: 300000
B46: 3722 | C46: 5321 | D46: Neinvestiční transfery obcím | G46: 5000
B47: 3639 | D47: Komunální služby a ostatní rozvoj | E47: 885000 | F47: ='[1]výdaje nerozepsané'!$J$27 -> 100000 | G47: ='výdaje rozepsané'!#REF! -> 
B49: 3722 | D49: Sběr a svoz komunálních odpadů | E49: 300128 | F49: ='[1]výdaje nerozepsané'!$J$29 -> 305000 | G49: ='výdaje rozepsané'!E45 -> 455000
B51: 3745 | C51: 5021 | D51: Ostatní osobní výdaje | G51: 60000
C52: 5137 | D52: DHDM | G52: 10000
B53: 3745 | C53: 5139 | D53: Nákup materiálu j.n. | G53: 10000
B54: 3745 | C54: 5156 | D54: Pohonné hmoty a maziva | G54: 10000
B55: 3745 | C55: 5169 | D55: Nákup ostatních služeb | G55: 100000
B56: 3745 | C56: 5171 | D56: opravy a udržování | G56: 10000
B57: 3745 | D57: Péče o vzhled obcí a veř.zeleň | E57: 337326 | F57: ='[1]výdaje nerozepsané'!$J$31 -> 90000 | G57: ='výdaje rozepsané'!E53 -> 200000
B59: 5299 | C59: 5901 | D59: Nespecifikované rezervy | G59: 10000
B60: 5299 | D60: Ost.zál.civ.přip.na kriz.stav | F60: ='[1]výdaje nerozepsané'!$J$33 -> 10000 | G60: ='výdaje rozepsané'!E56 -> 10000
B62: 5512 | C62: 5137 | D62: DHPM | G62: 10000
B63: 5512 | C63: 5139 | D63: Nákup materiálu j.n. | G63: 10000
B64: 5512 | C64: 5156 | D64: Pohonné hmoty a maziva | G64: 3000
B65: 5512 | C65: 5169 | D65: Nákup ostatních služeb | G65: 5000
B66: 5512 | C66: 5171 | D66: opravy a udržování | G66: 30000
B67: 5512 | C67: 5175 | D67: pohoštění | G67: 3000
B68: 5512 | C68: 5362 | D68: Platby daní a poplatků
B69: 5512 | D69: PO - dobrovolná část | E69: 31534 | F69: ='[1]výdaje nerozepsané'!$J$35 -> 56000 | G69: ='výdaje rozepsané'!E65 -> 41000
B71: 6112 | C71: 5023 | D71: Odměny čl. zastup. Obcí | G71: 540000
B72: 6112 | C72: 5032 | D72: Pov.pojistné na veř.zdrav.poj. | G72: 73000
B73: 6112 | C73: 5173 | D73: Cestovné (tuzem.i zahranič.) | G73: 22000
B74: 6112 | C74: 5175 | D74: Pohoštění | G74: 10000
B75: 6112 | D75: Zastupitelstva obcí | E75: 573119 | F75: ='[1]výdaje nerozepsané'!$J$37 -> 635000 | G75: ='výdaje rozepsané'!E71 -> 991000
B83: Paragraf | C83: Položka | G83: návrh
B84: a | C84: b | G84: 2017
B85: 6171 | C85: 5137 | D85: DHDM | G85: 30000
B86: 6171 | C86: 5139 | D86: Nákup materiálu j.n. | G86: 10000
B87: 6171 | C87: 5154 | D87: Elektrická energie | G87: 135000
B88: 6171 | C88: 5161 | D88: Služby pošt | G88: 3000
B89: 6171 | C89: 5162 | D89: Služby telekom. a radiokom. | G89: 20000
B90: 6171 | C90: 5163 | D90: Služby peněžních ústavů
B91: 6171 | C91: 5169 | D91: Nákup ostatních služeb | G91: 200000
B92: 6171 | C92: 5171 | D92: Opravy a udržování | G92: 100000
B93: 6171 | C93: 5172 | D93: Programové vybavení | G93: 15000
B94: 6171 | C94: 5182 | D94: Poskyt zálohy vlast. Pokladně
B95: 6171 | C95: 5194 | D95: Věcné dary | G95: 1000
B96: 6171 | C96: 5362 | D96: Platby daní a poplatků SR | G96: 41000
B97: 6171 | C97: 5366 | D97: Výdaje z FV min.let kraj-obec | G97: 13000
B98: 6114 | D98: Volby do parlamentu ČR | F98: ='[1]výdaje nerozepsané'!$J$39 -> 12293
B100: 6115 | D100: Volby do krajů a senátu | E100: 17718
B102: 6171 | D102: Činnost místní správy | E102: 1789084 | F102: ='[1]výdaje nerozepsané'!$J$41 -> 778000 | G102: ='výdaje rozepsané'!E90 -> 720500
B104: 6310 | C104: 5163 | D104: Služby peněžních ústavú | G104: 10000
B105: 6310 | D105: Obec.př. a výd. Z fin. Operací | E105: 7451 | F105: ='[1]výdaje nerozepsané'!$J$43 -> 10000 | G105: ='výdaje rozepsané'!E93 -> 10000
B107: 6330 | D107: převod vl.fondům v rozp. | E107: 2000
D110: Výdaje celkem | E110: =SUM(E10:E108) -> 6090113 | F110: =SUM(F10:F108) -> 4275543 | G110: =G105+G102+G75+G69+G60+G57+G49+G47+G41+G38+G34+G31+G27+G20+G16+G13+G10 -> 
D112: * po rozpočtové zmšně č.2
